[Event "CZE-ch Amateurs 2022"]
[Site "Luhacovice"]
[Date "2022.03.12"]
[Round "1.1"]
[White "Kopecky, Matej"]
[Black "Jedlicka, Ales"]
[Result "*"]
[ECO "B96"]
[WhiteElo "1598"]
[BlackElo "2223"]
[Annotator "RC"]
[PlyCount "106"]
[EventDate "2022.03.12"]
[EventType "swiss"]
[EventCountry "CZE"]
[SourceTitle "playchess.com"]
[Source "ChessBase"]
[SourceQuality "1"]
[TimeControl "5400+30"]

1. e4 {[%emt 0:00:06]} c5 {[%emt 0:00:16]} 2. Nf3 {[%emt 0:00:08]} d6 {[%emt 0:00:15]} 3. Nc3 {[%emt 0:00:39]} a6 {[%emt 0:00:31]} 4. d4 {[%emt 0:01:14]} cxd4 {[%emt 0:00:13]} 5. Nxd4 {[%emt 0:00:06]} Nf6 {[%emt 0:00:16]} 6. Bg5 {[%emt 0:01:27]} e6 {[%emt 0:00:44]} 7. f4 {[%emt 0:02:12]} Nbd7 {[%emt 0:03:02]} 8. Qf3 {[%emt 0:01:25]} Qc7 {[%emt 0:00:17]} 9. g4 {[%emt 0:02:22]} b5 {[%emt 0:01:28]} 10. Bd3 {[%emt 0:01:19]} Bb7 {[%emt 0:00:41]} 11. Bxf6 {[%emt 0:07:15]} Nxf6 {[%emt 0:01:56]} 12. g5 {[%emt 0:01:02]} Nd7 {[%emt 0:01:17]} 13. Qh3 {[%emt 0:00:39]} b4 {[%emt 0:04:53]} 14. Nce2 {[%emt 0:10:48]} Nc5 {[%emt 0:04:30]} 15. g6 {[%emt 0:02:44]} O-O-O {[%emt 0:05:13]} 16. f5 {[%emt 0:02:25]} exf5 {[%emt 0:05:44]} 17. Qxf5+ {[%emt 0:01:34]} Qd7 {[%emt 0:06:23]} 18. Qxf7 {[%emt 0:02:31]} Be7 {[%emt 0:05:22]} 19. Nf5 {[%emt 0:06:58]} Bf6 {[%emt 0:01:13]} 20. O-O-O {[%emt 0:03:52]} Qxf7 {[%emt 0:04:30]} 21. gxf7 {[%emt 0:00:02]} g6 {[%emt 0:01:07]} 22. Nfg3 {[%emt 0:00:25]} Rhf8 {[%emt 0:02:32]} 23. Bc4 {[%emt 0:00:35]} a5 {[%emt 0:08:24]} 24. Nd4 {[%emt 0:02:18]} d5 {[%emt 0:03:00]} 25. exd5 {[%emt 0:01:58]} Bxd5 {[%emt 0:00:25]} 26. Bxd5 {[%emt 0:00:09]} Rxd5 {[%emt 0:00:11]} 27. Nb5 {[%emt 0:00:36]} Rxd1+ {[%emt 0:07:00]} 28. Rxd1 {[%emt 0:00:23]} Be7 {[%emt 0:00:29]} 29. Rf1 {[%emt 0:00:50]} Kd7 {[%emt 0:00:39]} 30. Nd4 {[%emt 0:07:47]} Bg5+ {[%emt 0:01:10]} 31. Kd1 {[%emt 0:01:02]} Ne6 {[%emt 0:07:15]} 32. Nf3 {[%emt 0:05:34]} Bf6 {[%emt 0:01:15]} 33. b3 {[%emt 0:00:53]} Ke7 {[%emt 0:00:18]} 34. Ne4 {[%emt 0:00:37]} Rxf7 {[%emt 0:00:50]} 35. Nxf6 {[%emt 0:01:01]} Rxf6 {[%emt 0:00:18]} 36. Nd2 {[%emt 0:01:51]} Rxf1+ {[%emt 0:01:12]} 37. Nxf1 {[%emt 0:00:00]} Kd6 {[%emt 0:00:30]} 38. Ne3 {[%emt 0:01:07]} Kc5 {[%emt 0:00:17]} 39. Kd2 {[%emt 0:00:49]} Nf4 {[%emt 0:00:33]} 40. Nc4 {[%emt 0:03:57]} a4 {[%emt 0:01:57]} 41. Ke3 {[%emt 0:04:45]} Nd5+ {[%emt 0:00:22]} 42. Kd3 {[%emt 0:00:10]} a3 {[%emt 0:01:30]} 43. h4 {[%emt 0:05:11]} Nf4+ {[%emt 0:01:20]} 44. Kd2 {[%emt 0:07:20]} Ng2 {[%emt 0:00:45]} 45. c3 {[%emt 0:00:18]} Nxh4 {[%emt 0:00:30]} 46. Ne5 {[%emt 0:00:06]} Kd5 {[%emt 0:05:44]} 47. Nd3 {[%emt 0:00:16]} bxc3+ {[%emt 0:01:18]} 48. Kxc3 {[%emt 0:00:14]} g5 {[%emt 0:00:17]} 49. Kd2 {[%emt 0:00:12]} h5 {[%emt 0:02:02]} 50. Ke3 {[%emt 0:00:10]} Nf5+ {[%emt 0:00:14]} 51. Kf2 {[%emt 0:00:20]} Kd4 {[%emt 0:01:52]} 52. Ke2 {[%emt 0:00:11]} Kc3 {[%emt 0:01:19]} 53. b4 {[%emt 0:01:03]} Nd4+ {[%emt 0:00:34]} *

[Event "CZE-ch Amateurs 2022"]
[Site "Luhacovice"]
[Date "2022.03.12"]
[Round "1.2"]
[White "Jun, Rudolf"]
[Black "Beinhauer, Bernard"]
[Result "1-0"]
[ECO "A34"]
[WhiteElo "2215"]
[BlackElo "1595"]
[Annotator "ChessBase"]
[PlyCount "119"]
[EventDate "2022.03.12"]
[EventType "swiss"]
[EventCountry "CZE"]
[SourceTitle "playchess.com"]
[Source "ChessBase"]
[SourceQuality "1"]
[TimeControl "5400+30"]

1. e4 {[%emt 0:00:08]} c5 {[%emt 0:00:10]} 2. Nf3 {[%emt 0:00:09]} e6 {[%emt 0:00:10]} 3. c4 {[%emt 0:00:23]} Nc6 {[%emt 0:00:19]} 4. Nc3 {[%emt 0:00:13]} Nf6 {[%emt 0:01:06]} 5. Be2 {[%emt 0:00:28]} d5 {[%emt 0:04:55]} 6. exd5 {[%emt 0:00:35]} exd5 {[%emt 0:00:10]} 7. d4 {[%emt 0:00:06]} Be7 {[%emt 0:02:52]} 8. Bg5 {[%emt 0:01:59]} Be6 {[%emt 0:03:46]} 9. cxd5 {[%emt 0:05:02]} Nxd5 {[%emt 0:00:25]} 10. Bxe7 {[%emt 0:01:05]} Qxe7 {[%emt 0:00:28]} 11. Nxd5 {[%emt 0:05:12]} Bxd5 {[%emt 0:00:13]} 12. O-O {[%emt 0:02:11]} O-O {[%emt 0:07:23]} 13. Re1 {[%emt 0:06:33]} cxd4 {[%emt 0:05:46]} 14. Nxd4 {[%emt 0:05:41]} Qf6 {[%emt 0:05:14]} 15. Nxc6 {[%emt 0:01:12]} Bxc6 {[%emt 0:00:17]} 16. Qb3 {[%emt 0:00:58]} Rad8 {[%emt 0:02:28]} 17. Rad1 {[%emt 0:02:36]} Rfe8 {[%emt 0:07:05]} 18. Bc4 {[%emt 0:03:43]} Rxe1+ {[%emt 0:06:42]} 19. Rxe1 {[%emt 0:00:09]} h6 {[%emt 0:01:39]} 20. h3 {[%emt 0:30:31]} Rd2 {[%emt 0:12:17]} 21. Qe3 {[%emt 0:03:43]} Qd4 {[%emt 0:03:57]} 22. Qxd4 {[%emt 0:01:18]} Rxd4 {[%emt 0:00:10]} 23. b3 {[%emt 0:01:13]} Kf8 {[%emt 0:00:47]} 24. Re3 {[%emt 0:04:37]} Rd1+ {[%emt 0:01:21]} 25. Kh2 {[%emt 0:00:15]} Rd2 {[%emt 0:00:23]} 26. Re2 {[%emt 0:01:53]} Rxe2 {[%emt 0:00:09]} 27. Bxe2 {[%emt 0:00:04]} Ke7 {[%emt 0:01:32]} 28. Kg3 {[%emt 0:01:26]} f5 {[%emt 0:01:04]} 29. f4 {[%emt 0:02:40]} g5 {[%emt 0:00:44]} 30. Bf1 {[%emt 0:06:44]} Kf6 {[%emt 0:02:19]} 31. h4 {[%emt 0:03:20]} Kg6 {[%emt 0:03:36]} 32. Bd3 {[%emt 0:03:37]} gxh4+ {[%emt 0:01:49]} 33. Kh3 {[%emt 0:00:14]} Be4 {[%emt 0:01:59]} 34. Bf1 {[%emt 0:02:13]} a6 {[%emt 0:03:31]} 35. Kxh4 {[%emt 0:00:51]} Bc6 {[%emt 0:00:51]} 36. g3 {[%emt 0:04:37]} Bf3 {[%emt 0:01:33]} 37. Bc4 {[%emt 0:00:48]} Kf6 {[%emt 0:01:16]} 38. Kh3 {[%emt 0:00:30]} b5 {[%emt 0:02:36]} 39. Bd3 {[%emt 0:00:08]} Ke6 {[%emt 0:04:48]} 40. Kh2 {[%emt 0:00:21]} Bg4 {[%emt 0:00:47]} 41. Kg2 {[%emt 0:00:34]} Kd5 {[%emt 0:00:17]} 42. Kf2 {[%emt 0:00:52]} Kd4 {[%emt 0:00:06]} 43. Bf1 {[%emt 0:00:34]} Kc3 {[%emt 0:00:16]} 44. Ke3 {[%emt 0:00:22]} Kb2 {[%emt 0:00:09]} 45. a4 {[%emt 0:00:24]} bxa4 {[%emt 0:06:17]} 46. bxa4 {[%emt 0:00:10]} a5 {[%emt 0:00:03]} 47. Kd4 {[%emt 0:00:36]} Ka3 {[%emt 0:00:56]} 48. Bb5 {[%emt 0:00:05]} Bd1 {[%emt 0:00:16]} 49. Bd7 {[%emt 0:00:07]} Bc2 {[%emt 0:01:56]} 50. Ke5 {[%emt 0:00:15]} Kb4 {[%emt 0:00:44]} 51. Kf6 {[%emt 0:00:44]} Bxa4 {[%emt 0:01:01]} 52. Bxf5 {[%emt 0:00:13]} Bb5 {[%emt 0:00:42]} 53. Bc2 {[%emt 0:01:51]} Ba4 {[%emt 0:00:13]} 54. Bb1 {[%emt 0:00:41]} Bd1 {[%emt 0:00:49]} 55. Kg7 {[%emt 0:00:29]} a4 {[%emt 0:00:45]} 56. f5 {[%emt 0:00:05]} a3 {[%emt 0:00:05]} 57. f6 {[%emt 0:00:50]} Bc2 {[%emt 0:00:05]} 58. Ba2 {[%emt 0:00:31]} Bb3 {[%emt 0:00:13]} 59. f7 {[%emt 0:00:17]} Bxa2 {[%emt 0:00:48]} 60. f8=Q+ {[%emt 0:00:09]} 1-0

[Event "CZE-ch Amateurs 2022"]
[Site "Luhacovice"]
[Date "2022.03.12"]
[Round "1.3"]
[White "Ocelak, David"]
[Black "Kratochvil, Josef"]
[Result "0-1"]
[ECO "B43"]
[WhiteElo "1570"]
[BlackElo "2200"]
[Annotator "ChessBase"]
[PlyCount "106"]
[EventDate "2022.03.12"]
[EventType "swiss"]
[EventCountry "CZE"]
[SourceTitle "playchess.com"]
[Source "ChessBase"]
[SourceQuality "1"]
[TimeControl "5400+30"]

1. e4 {[%emt 0:00:05]} c5 {[%emt 0:00:13]} 2. Nf3 {[%emt 0:00:13]} e6 {[%emt 0:00:05]} 3. d4 {[%emt 0:00:25]} cxd4 {[%emt 0:00:08]} 4. Nxd4 {[%emt 0:00:06]} a6 {[%emt 0:00:05]} 5. Nc3 {[%emt 0:00:29]} b5 {[%emt 0:00:19]} 6. Be3 {[%emt 0:01:04]} Bb7 {[%emt 0:01:01]} 7. f3 {[%emt 0:01:45]} b4 {[%emt 0:04:27]} 8. Nb1 {[%emt 0:01:24]} Nf6 {[%emt 0:01:14]} 9. Nd2 {[%emt 0:03:18]} Qc7 {[%emt 0:03:04]} 10. Bd3 {[%emt 0:02:40]} d5 {[%emt 0:01:53]} 11. Qe2 {[%emt 0:04:19]} Nbd7 {[%emt 0:02:33]} 12. O-O {[%emt 0:04:44]} Bd6 {[%emt 0:03:16]} 13. g3 {[%emt 0:02:55]} Nc5 {[%emt 0:06:09]} 14. Qg2 {[%emt 0:05:19]} O-O {[%emt 0:04:10]} 15. N4b3 {[%emt 0:02:46]} dxe4 {[%emt 0:02:58]} 16. Nxe4 {[%emt 0:02:40]} Nxd3 {[%emt 0:04:36]} 17. cxd3 {[%emt 0:00:56]} Be7 {[%emt 0:03:15]} 18. Rac1 {[%emt 0:03:21]} Qd8 {[%emt 0:00:27]} 19. Rfd1 {[%emt 0:03:53]} Bd5 {[%emt 0:03:18]} 20. Nbc5 {[%emt 0:05:52]} Nd7 {[%emt 0:02:21]} 21. b3 {[%emt 0:02:16]} Rc8 {[%emt 0:07:09]} 22. d4 {[%emt 0:03:18]} f5 {[%emt 0:04:42]} 23. Nf2 {[%emt 0:01:09]} Nxc5 {[%emt 0:03:47]} 24. dxc5 {[%emt 0:00:13]} Bg5 {[%emt 0:00:14]} 25. Bxg5 {[%emt 0:11:41]} Qxg5 {[%emt 0:00:23]} 26. Re1 {[%emt 0:00:30]} Qh5 {[%emt 0:06:35]} 27. Re3 {[%emt 0:11:28]} f4 {[%emt 0:06:02]} 28. g4 {[%emt 0:05:49]} Qg6 {[%emt 0:01:26]} 29. Re5 {[%emt 0:01:07]} Rc6 {[%emt 0:11:38]} 30. Ne4 {[%emt 0:01:54]} a5 {[%emt 0:00:41]} 31. Qf2 {[%emt 0:03:26]} Qf7 {[%emt 0:02:13]} 32. Qd4 {[%emt 0:06:15]} Qc7 {[%emt 0:01:16]} 33. Kg2 {[%emt 0:03:57]} Rd8 {[%emt 0:02:32]} 34. Nd6 {[%emt 0:01:30]} Rcxd6 {[%emt 0:02:02]} 35. cxd6 {[%emt 0:00:23]} Qxc1 {[%emt 0:00:15]} 36. Rg5 {[%emt 0:00:51]} Bxf3+ {[%emt 0:04:21]} 37. Kxf3 {[%emt 0:03:28]} Qf1+ {[%emt 0:00:08]} 38. Qf2 {[%emt 0:00:19]} Qh1+ {[%emt 0:02:54]} 39. Qg2 {[%emt 0:00:38]} Qxg2+ {[%emt 0:00:17]} 40. Kxg2 {[%emt 0:00:09]} Rxd6 {[%emt 0:00:05]} 41. Rxa5 {[%emt 0:00:12]} Kf7 {[%emt 0:00:16]} 42. Kf3 {[%emt 0:00:32]} Rd4 {[%emt 0:00:16]} 43. Ra7+ {[%emt 0:00:40]} Kf6 {[%emt 0:02:57]} 44. h4 {[%emt 0:00:42]} e5 {[%emt 0:01:10]} 45. Ra6+ {[%emt 0:01:00]} Ke7 {[%emt 0:00:15]} 46. g5 {[%emt 0:00:31]} g6 {[%emt 0:00:57]} 47. Rb6 {[%emt 0:00:50]} Kd7 {[%emt 0:01:04]} 48. Rb7+ {[%emt 0:00:26]} Ke6 {[%emt 0:00:04]} 49. Rxh7 {[%emt 0:00:13]} Rd3+ {[%emt 0:00:07]} 50. Ke2 {[%emt 0:00:20]} e4 {[%emt 0:00:24]} 51. Rh8 {[%emt 0:01:01]} Kf5 {[%emt 0:00:49]} 52. Re8 {[%emt 0:00:37]} f3+ {[%emt 0:00:48]} 53. Ke1 {[%emt 0:00:37]} Kf4 {[%emt 0:00:27]} 0-1

[Event "CZE-ch Amateurs 2022"]
[Site "Luhacovice"]
[Date "2022.03.12"]
[Round "1.4"]
[White "Nemec, Pavel"]
[Black "Sepsi, Jakub"]
[Result "*"]
[ECO "B51"]
[WhiteElo "2223"]
[BlackElo "1639"]
[Annotator "RC"]
[PlyCount "95"]
[EventDate "2022.03.12"]
[EventType "swiss"]
[EventCountry "CZE"]
[SourceTitle "playchess.com"]
[Source "ChessBase"]
[SourceQuality "1"]
[TimeControl "5400+30"]

1. e4 {[%emt 0:00:06]} c5 {[%emt 0:00:12]} 2. Nf3 {[%emt 0:00:15]} Nc6 {[%emt 0:00:15]} 3. Bb5 {[%emt 0:00:22]} d6 {[%emt 0:01:50]} 4. O-O {[%emt 0:00:13]} Bd7 {[%emt 0:00:52]} 5. Re1 {[%emt 0:00:49]} a6 {[%emt 0:02:22]} 6. Bf1 {[%emt 0:00:35]} Bg4 {[%emt 0:03:31]} 7. h3 {[%emt 0:01:01]} Bh5 {[%emt 0:01:27]} 8. Nc3 {[%emt 0:10:17]} Nd4 {[%emt 0:07:42]} 9. g4 {[%emt 0:00:29]} Nxf3+ {[%emt 0:01:10]} 10. Qxf3 {[%emt 0:00:02]} Bg6 {[%emt 0:00:48]} 11. e5 {[%emt 0:01:54]} Rb8 {[%emt 0:10:52]} 12. exd6 {[%emt 0:08:27]} e6 {[%emt 0:04:32]} 13. d4 {[%emt 0:00:32]} cxd4 {[%emt 0:03:16]} 14. Nb5 {[%emt 0:01:44]} Bxd6 {[%emt 0:04:25]} 15. Nxd6+ {[%emt 0:00:11]} Qxd6 {[%emt 0:05:00]} 16. Bf4 {[%emt 0:00:14]} Qd8 {[%emt 0:02:31]} 17. Bxb8 {[%emt 0:00:08]} Qxb8 {[%emt 0:00:34]} 18. Rad1 {[%emt 0:00:57]} h5 {[%emt 0:19:39]} 19. g5 {[%emt 0:04:58]} Ne7 {[%emt 0:05:12]} 20. Rxd4 {[%emt 0:01:43]} Nc6 {[%emt 0:02:21]} 21. Rd2 {[%emt 0:03:43]} Qc7 {[%emt 0:04:34]} 22. Qe3 {[%emt 0:06:38]} O-O {[%emt 0:03:22]} 23. Bg2 {[%emt 0:01:19]} Nb4 {[%emt 0:04:44]} 24. c3 {[%emt 0:01:28]} Nc6 {[%emt 0:05:21]} 25. Qg3 {[%emt 0:05:14]} Qb6 {[%emt 0:01:19]} 26. Bxc6 {[%emt 0:02:21]} Qxc6 {[%emt 0:00:14]} 27. Qg2 {[%emt 0:01:55]} Qb5 {[%emt 0:01:26]} 28. b3 {[%emt 0:01:14]} Kh7 {[%emt 0:01:41]} 29. c4 {[%emt 0:01:13]} Qa5 {[%emt 0:00:50]} 30. Red1 {[%emt 0:00:15]} b5 {[%emt 0:00:40]} 31. c5 {[%emt 0:00:43]} Rc8 {[%emt 0:00:38]} 32. Rd4 {[%emt 0:03:48]} Qxa2 {[%emt 0:01:22]} 33. b4 {[%emt 0:00:19]} a5 {[%emt 0:00:45]} 34. Qb7 {[%emt 0:00:50]} Rf8 {[%emt 0:01:14]} 35. Qxb5 {[%emt 0:01:41]} axb4 {[%emt 0:00:29]} 36. Qxb4 {[%emt 0:00:51]} f6 {[%emt 0:00:42]} 37. c6 {[%emt 0:01:56]} Rf7 {[%emt 0:00:35]} 38. Qc4 {[%emt 0:01:39]} Qa5 {[%emt 0:00:26]} 39. Qxe6 {[%emt 0:06:43]} Qxg5+ {[%emt 0:00:34]} 40. Kh2 {[%emt 0:01:08]} Qc5 {[%emt 0:00:28]} 41. Qd6 {[%emt 0:02:24]} Qf5 {[%emt 0:00:29]} 42. Qf4 {[%emt 0:01:43]} Qc8 {[%emt 0:00:34]} 43. Rc1 {[%emt 0:02:20]} Rc7 {[%emt 0:00:26]} 44. Rd6 {[%emt 0:03:51]} Be8 {[%emt 0:00:34]} 45. Qe4+ {[%emt 0:01:17]} Kh8 {[%emt 0:00:18]} 46. Qd5 {[%emt 0:01:21]} Qb8 {[%emt 0:00:38]} 47. Rd8 {[%emt 0:03:18]} Rc8+ {[%emt 0:00:32]} 48. c7 {[%emt 0:00:06]} *

[Event "CZE-ch Amateurs 2022"]
[Site "Luhacovice"]
[Date "2022.03.12"]
[Round "1.5"]
[White "Zednicek, Filip"]
[Black "Vanek, Ladislav"]
[Result "0-1"]
[ECO "C01"]
[WhiteElo "1570"]
[BlackElo "2221"]
[Annotator "ChessBase"]
[PlyCount "46"]
[EventDate "2022.03.12"]
[EventType "swiss"]
[EventCountry "CZE"]
[SourceTitle "playchess.com"]
[Source "ChessBase"]
[SourceQuality "1"]
[TimeControl "5400+30"]

1. e4 {[%emt 0:00:14]} e6 {[%emt 0:00:08]} 2. d4 {[%emt 0:01:05]} d5 {[%emt 0:00:08]} 3. exd5 {[%emt 0:00:47]} exd5 {[%emt 0:00:07]} 4. c4 {[%emt 0:01:26]} Bb4+ {[%emt 0:00:31]} 5. Nc3 {[%emt 0:00:47]} Nf6 {[%emt 0:00:37]} 6. Nf3 {[%emt 0:01:21]} O-O {[%emt 0:00:56]} 7. Be2 {[%emt 0:01:25]} dxc4 {[%emt 0:02:11]} 8. Bxc4 {[%emt 0:00:37]} Re8+ {[%emt 0:00:19]} 9. Be3 {[%emt 0:00:12]} Be6 {[%emt 0:02:22]} 10. Bxe6 {[%emt 0:02:57]} Rxe6 {[%emt 0:02:26]} 11. O-O {[%emt 0:01:23]} Nbd7 {[%emt 0:04:59]} 12. Qb3 {[%emt 0:05:24]} a5 {[%emt 0:01:01]} 13. Rac1 {[%emt 0:05:52]} Nb6 {[%emt 0:03:19]} 14. a3 {[%emt 0:07:17]} Bxc3 {[%emt 0:02:41]} 15. bxc3 {[%emt 0:02:34]} a4 {[%emt 0:00:10]} 16. Qb5 {[%emt 0:06:43]} Qd5 {[%emt 0:08:27]} 17. Qd3 {[%emt 0:18:57]} Qb3 {[%emt 0:06:05]} 18. Ra1 {[%emt 0:03:41]} Qc4 {[%emt 0:01:03]} 19. Qc2 {[%emt 0:01:17]} Nfd5 {[%emt 0:03:02]} 20. Ng5 {[%emt 0:05:44]} Rg6 {[%emt 0:00:37]} 21. Bd2 {[%emt 0:03:48]} Nxc3 {[%emt 0:04:30]} 22. Qxc3 {[%emt 0:05:22]} Qxc3 {[%emt 0:00:19]} 23. Bxc3 {[%emt 0:00:03]} Rxg5 {[%emt 0:00:13]} 0-1

[Event "CZE-ch Amateurs 2022"]
[Site "Luhacovice"]
[Date "2022.03.12"]
[Round "1.6"]
[White "Mudrak, Josef"]
[Black "Jankovsky, Zbynek"]
[Result "1-0"]
[ECO "A43"]
[WhiteElo "2219"]
[BlackElo "1594"]
[Annotator "ChessBase"]
[PlyCount "109"]
[EventDate "2022.03.12"]
[EventType "swiss"]
[EventCountry "CZE"]
[SourceTitle "playchess.com"]
[Source "ChessBase"]
[SourceQuality "1"]
[TimeControl "5400+30"]

1. d4 {[%emt 0:03:02]} e6 {[%emt 0:00:08]} 2. Nf3 {[%emt 0:00:13]} c5 {[%emt 0:00:23]} 3. g3 {[%emt 0:00:23]} cxd4 {[%emt 0:00:33]} 4. Nxd4 {[%emt 0:00:20]} Nc6 {[%emt 0:00:26]} 5. Bg2 {[%emt 0:00:28]} Bc5 {[%emt 0:01:28]} 6. Nb3 {[%emt 0:00:25]} Bb6 {[%emt 0:00:34]} 7. c4 {[%emt 0:00:28]} Qe7 {[%emt 0:03:18]} 8. O-O {[%emt 0:00:36]} Nf6 {[%emt 0:00:28]} 9. Nc3 {[%emt 0:00:34]} a6 {[%emt 0:01:24]} 10. Bf4 {[%emt 0:00:35]} e5 {[%emt 0:00:58]} 11. Bg5 {[%emt 0:00:18]} Qe6 {[%emt 0:00:42]} 12. Nd5 {[%emt 0:01:53]} Nxd5 {[%emt 0:00:42]} 13. cxd5 {[%emt 0:00:09]} Qg6 {[%emt 0:06:21]} 14. dxc6 {[%emt 0:01:35]} dxc6 {[%emt 0:00:29]} 15. Qd2 {[%emt 0:00:16]} O-O {[%emt 0:00:34]} 16. Be3 {[%emt 0:01:18]} Bc7 {[%emt 0:01:46]} 17. Nc5 {[%emt 0:02:10]} Rd8 {[%emt 0:03:22]} 18. Qc3 {[%emt 0:00:21]} Rb8 {[%emt 0:00:46]} 19. Rad1 {[%emt 0:01:14]} Re8 {[%emt 0:02:14]} 20. Nd7 {[%emt 0:00:44]} Ra8 {[%emt 0:00:12]} 21. Nxe5 {[%emt 0:00:33]} Bxe5 {[%emt 0:01:01]} 22. Qxe5 {[%emt 0:00:09]} Bg4 {[%emt 0:01:39]} 23. Qc7 {[%emt 0:00:47]} Bxe2 {[%emt 0:00:54]} 24. Qxb7 {[%emt 0:01:15]} Bxd1 {[%emt 0:03:50]} 25. Rxd1 {[%emt 0:00:23]} Rab8 {[%emt 0:05:30]} 26. Qxa6 {[%emt 0:01:50]} Rxb2 {[%emt 0:03:51]} 27. Qxc6 {[%emt 0:00:36]} Reb8 {[%emt 0:00:22]} 28. Qxg6 {[%emt 0:01:14]} hxg6 {[%emt 0:00:15]} 29. Bd5 {[%emt 0:00:17]} Rb1 {[%emt 0:02:56]} 30. Rxb1 {[%emt 0:00:16]} Rxb1+ {[%emt 0:00:05]} 31. Kg2 {[%emt 0:00:06]} Kf8 {[%emt 0:00:55]} 32. Bc5+ {[%emt 0:02:07]} Ke8 {[%emt 0:00:17]} 33. Bc6+ {[%emt 0:00:46]} Kd8 {[%emt 0:00:11]} 34. Bf8 {[%emt 0:00:35]} Rc1 {[%emt 0:06:12]} 35. Bd5 {[%emt 0:00:22]} Ke8 {[%emt 0:00:08]} 36. Bxg7 {[%emt 0:00:20]} Ke7 {[%emt 0:00:02]} 37. Bb2 {[%emt 0:00:30]} Rc2 {[%emt 0:00:38]} 38. Ba3+ {[%emt 0:00:17]} Kf6 {[%emt 0:00:10]} 39. h4 {[%emt 0:00:20]} Rd2 {[%emt 0:00:24]} 40. Bb3 {[%emt 0:00:15]} Kg7 {[%emt 0:00:25]} 41. Bb4 {[%emt 0:00:14]} Rd7 {[%emt 0:00:43]} 42. Kf3 {[%emt 0:00:27]} Rb7 {[%emt 0:00:17]} 43. Bc3+ {[%emt 0:00:16]} Kf8 {[%emt 0:02:45]} 44. g4 {[%emt 0:00:19]} Kg8 {[%emt 0:00:47]} 45. Bd4 {[%emt 0:01:29]} Rd7 {[%emt 0:00:32]} 46. Ke4 {[%emt 0:00:09]} Rb7 {[%emt 0:00:17]} 47. Bd5 {[%emt 0:00:47]} Rb8 {[%emt 0:01:14]} 48. a4 {[%emt 0:00:13]} Re8+ {[%emt 0:00:14]} 49. Kd3 {[%emt 0:00:11]} Rd8 {[%emt 0:00:10]} 50. Kc4 {[%emt 0:00:09]} Rc8+ {[%emt 0:00:22]} 51. Bc5 {[%emt 0:00:06]} Rb8 {[%emt 0:00:37]} 52. a5 {[%emt 0:00:07]} Rb2 {[%emt 0:00:09]} 53. a6 {[%emt 0:00:09]} Rc2+ {[%emt 0:01:45]} 54. Kb5 {[%emt 0:00:08]} Rb2+ {[%emt 0:00:12]} 55. Kc6 {[%emt 0:00:05]} 1-0

[Event "CZE-ch Amateurs 2022"]
[Site "Luhacovice"]
[Date "2022.03.12"]
[Round "1.7"]
[White "Svec, Ludek"]
[Black "Jares, Michal"]
[Result "1/2-1/2"]
[ECO "E18"]
[WhiteElo "1595"]
[BlackElo "2160"]
[Annotator "ChessBase"]
[PlyCount "120"]
[EventDate "2022.03.12"]
[EventType "swiss"]
[EventCountry "CZE"]
[SourceTitle "playchess.com"]
[Source "ChessBase"]
[SourceQuality "1"]
[TimeControl "5400+30"]

1. d4 {[%emt 0:00:16]} Nf6 {[%emt 0:00:10]} 2. Nf3 {[%emt 0:00:06]} e6 {[%emt 0:00:12]} 3. g3 {[%emt 0:00:21]} b6 {[%emt 0:00:30]} 4. Bg2 {[%emt 0:00:28]} Bb7 {[%emt 0:00:18]} 5. O-O {[%emt 0:00:36]} Be7 {[%emt 0:00:17]} 6. c4 {[%emt 0:00:40]} O-O {[%emt 0:00:18]} 7. Nc3 {[%emt 0:00:49]} d5 {[%emt 0:05:16]} 8. Ne5 {[%emt 0:01:01]} Nbd7 {[%emt 0:01:18]} 9. cxd5 {[%emt 0:11:40]} Nxe5 {[%emt 0:14:18]} 10. dxe5 {[%emt 0:00:34]} Nxd5 {[%emt 0:00:16]} 11. Nxd5 {[%emt 0:03:10]} Bxd5 {[%emt 0:00:13]} 12. Be3 {[%emt 0:02:29]} c5 {[%emt 0:01:09]} 13. Qc2 {[%emt 0:02:39]} Bxg2 {[%emt 0:01:44]} 14. Kxg2 {[%emt 0:00:03]} Qd5+ {[%emt 0:00:20]} 15. Kg1 {[%emt 0:00:37]} Qxe5 {[%emt 0:00:22]} 16. a4 {[%emt 0:01:18]} Bf6 {[%emt 0:03:07]} 17. b3 {[%emt 0:04:20]} Qxa1 {[%emt 0:03:40]} 18. Rxa1 {[%emt 0:00:03]} Bxa1 {[%emt 0:00:09]} 19. Qc4 {[%emt 0:03:13]} Rfd8 {[%emt 0:03:29]} 20. Kg2 {[%emt 0:00:59]} h6 {[%emt 0:01:33]} 21. h4 {[%emt 0:00:06]} Bd4 {[%emt 0:01:26]} 22. Qb5 {[%emt 0:02:18]} Bxe3 {[%emt 0:01:41]} 23. fxe3 {[%emt 0:03:54]} Rd5 {[%emt 0:02:45]} 24. Qa6 {[%emt 0:05:42]} Rd7 {[%emt 0:02:53]} 25. h5 {[%emt 0:00:50]} Rad8 {[%emt 0:01:38]} 26. Kf3 {[%emt 0:00:57]} Rc7 {[%emt 0:00:49]} 27. g4 {[%emt 0:01:26]} Rd5 {[%emt 0:01:11]} 28. Qc4 {[%emt 0:01:24]} Rcd7 {[%emt 0:02:58]} 29. Qa6 {[%emt 0:00:48]} Kf8 {[%emt 0:01:57]} 30. Qc8+ {[%emt 0:02:20]} Ke7 {[%emt 0:00:14]} 31. Qb8 {[%emt 0:05:11]} Rg5 {[%emt 0:07:22]} 32. Qa8 {[%emt 0:04:22]} f5 {[%emt 0:02:17]} 33. gxf5 {[%emt 0:01:43]} Rxf5+ {[%emt 0:00:34]} 34. Kg4 {[%emt 0:00:54]} Rg5+ {[%emt 0:00:26]} 35. Kh4 {[%emt 0:02:07]} Rd1 {[%emt 0:10:28]} 36. Qxa7+ {[%emt 0:02:57]} Kf6 {[%emt 0:00:12]} 37. Qa8 {[%emt 0:01:14]} Rdg1 {[%emt 0:02:26]} 38. Qf8+ {[%emt 0:02:37]} Ke5 {[%emt 0:00:02]} 39. Qf4+ {[%emt 0:00:52]} Kd5 {[%emt 0:00:03]} 40. Qf3+ {[%emt 0:02:15]} Kd6 {[%emt 0:00:38]} 41. Qf8+ {[%emt 0:00:14]} Kc6 {[%emt 0:03:07]} 42. Qc8+ {[%emt 0:11:33]} Kd5 {[%emt 0:00:55]} 43. Qb7+ {[%emt 0:03:33]} Ke5 {[%emt 0:00:48]} 44. Qc7+ {[%emt 0:00:21]} Kf6 {[%emt 0:00:30]} 45. Qd8+ {[%emt 0:00:29]} Kf7 {[%emt 0:00:59]} 46. Qd7+ {[%emt 0:00:37]} Kf8 {[%emt 0:01:18]} 47. Qd8+ {[%emt 0:00:09]} Kf7 {[%emt 0:00:02]} 48. Qd7+ {[%emt 0:00:01]} Kf6 {[%emt 0:00:25]} 49. Qd8+ {[%emt 0:00:52]} Kf5 {[%emt 0:01:21]} 50. Qf8+ {[%emt 0:00:16]} Ke4 {[%emt 0:01:23]} 51. Qf4+ {[%emt 0:00:08]} Kd5 {[%emt 0:00:02]} 52. Qf3+ {[%emt 0:00:18]} Kd6 {[%emt 0:00:15]} 53. Qf8+ {[%emt 0:00:08]} Kc7 {[%emt 0:00:34]} 54. Qe7+ {[%emt 0:00:55]} Kb8 {[%emt 0:00:16]} 55. Qe8+ {[%emt 0:02:09]} Ka7 {[%emt 0:01:47]} 56. Qd7+ {[%emt 0:00:17]} Ka8 {[%emt 0:00:14]} 57. Qc8+ {[%emt 0:00:16]} Ka7 {[%emt 0:00:01]} 58. Qd7+ {[%emt 0:00:02]} Ka6 {[%emt 0:00:26]} 59. Qb5+ {[%emt 0:00:01]} Ka7 {[%emt 0:00:19]} 60. Qd7+ {[%emt 0:00:02]} Kb8 {[%emt 0:00:15]} 1/2-1/2